fUSD/lending_fUSD_20240616
["ID","MTS","AMOUNT","RATE_DAILY","PERIOD"]
[329659129,1718549446820,-508.65,0.00018481,2]
[329659130,1718549446833,-500.0,0.00019178,2]
[329659131,1718549446844,-525.6102446,0.00019178,2]
[329659132,1718549446857,-500.0,0.00019178,2]
[329659133,1718549446868,-499.57962401,0.00019178,2]
[329659134,1718549446886,-208.88971917,0.00019178,2]
[329659135,1718549446909,-500.0,0.00019178,2]
[329659136,1718549446940,-500.0,0.00019178,2]
[329659137,1718549446953,-500.0,0.00019178,2]
[329659138,1718549446984,-500.0,0.00019178,2]
[329659139,1718549446997,-500.0,0.00019178,2]
[329659140,1718549447022,-500.0,0.00019178,2]
[329659141,1718549447036,-500.0,0.00019178,2]
[329659142,1718549447049,-358.88468297,0.00019178,2]
[329659143,1718549447080,-500.0,0.00019178,2]
[329659144,1718549447113,-321.80219057,0.00019178,2]
[329659145,1718549447135,-500.0,0.00019178,2]
[329659146,1718549447148,-500.0,0.00019178,2]
[329659147,1718549447168,-604.21832257,0.00019178,2]
[329659148,1718549447182,-310.50111253,0.00019178,2]
[329659149,1718549447214,-733.31,0.00019178,2]
[329659150,1718549447241,-29528.67412365,0.0002,2]
[329659151,1718549447254,-230.0815159,0.0002,2]
[329659152,1718549447291,-199.28129257,0.0002,2]
[329659153,1718549447308,-21016.38600683,0.0002,2]
[329659154,1718549447322,-155.0,0.0002,2]
[329659155,1718549447364,-155.0,0.0002,2]
[329659156,1718549447385,-866.04779962,0.0002,2]
[329659157,1718549447416,-187.77928612,0.00020116,2]
[329659158,1718549447432,-326.5417784,0.00020117,2]
[329659159,1718549447476,-155.0,0.00020118,2]
[329659160,1718549447512,-155.0,0.00020118,2]
[329659161,1718549447549,-6270.52442089,0.0002057,2]
[329659163,1718549447564,-3898.38718173,0.00020571,2]
[329659164,1718549447579,-508.65,0.00020745,2]
[329659165,1718549447597,-170.45075407,0.00020806,2]
[329659167,1718549447608,-5000.0,0.00021199,2]
[329659168,1718549447624,-2002.0,0.000212,5]
[329659169,1718549447639,-184.34,0.00021225,2]
[329659170,1718549447664,-493.20446554,0.00021422,2]
[329659171,1718549447678,-154.68170655,0.00021521,2]
[329659172,1718549447704,-89485.69344,0.000216,2]
[329659173,1718549447719,-150.07,0.00021918,2]
[329659174,1718549447740,-250.0,0.00021918,2]
[329659175,1718549447756,-600.0,0.00022356,3]
[329659176,1718549447769,-715.15608201,0.00022522,2]
[329659177,1718549447780,-3661.382,0.00022537,2]
[329659178,1718549447791,-600.0,0.00022925,3]
[329659179,1718549447808,-508.65,0.00023009,2]
[329659180,1718549447829,-3622.579,0.00023308,2]
[329659181,1718549447843,-417.29399913,0.0002387,2]
[329659182,1718549447906,-69888.11887105,0.0002388,2]
[329659183,1718549447932,-5768.71007583,0.00024,3]
[329659184,1718549447946,-180.0,0.0002423,2]
[329659185,1718549447974,-943.17257402,0.00024383,2]
[329659186,1718549448003,-943.17257402,0.00024383,2]
[329659188,1718549448023,-774.35,0.00024384,2]
[329659190,1718549448037,-792.0,0.000246,4]
[329659191,1718549448048,-2953.0,0.000246,4]
[329659193,1718549448062,-6620.58192575,0.00024798,2]
[329659194,1718549448077,-6620.58192571,0.00024798,2]
[329659195,1718549448090,-6620.58192571,0.00024798,2]
[329659196,1718549448105,-6620.58192571,0.00024798,2]
[329659197,1718549448126,-6620.58192571,0.00024798,2]
[329659198,1718549448148,-6620.58192571,0.00024798,2]
[329659199,1718549448165,-6620.58192571,0.00024798,2]
[329659200,1718549448197,-6620.58192571,0.00024798,2]
[329659201,1718549448213,-150.0,0.00024897,2]
[329659202,1718549448224,-578.929,0.00024899,2]
[329659203,1718549448235,-2539.4599,0.000249,2]
[329659204,1718549448252,-2500.0,0.000249,2]
[329659205,1718549448270,-6806.05267092,0.000249,2]
[329659206,1718549448282,-390.03094301,0.00024984,2]
[329659207,1718549448320,-834.00313039,0.00025,2]
[329659208,1718549448335,-155.0,0.00025,2]
[329659209,1718549448348,-931.60424191,0.00025,2]
[329659210,1718549448360,-159.29139933,0.00025,2]
[329659211,1718549448371,-707.39834978,0.00025,2]
[329659212,1718549448384,-630.41108301,0.00025,2]
[329659213,1718549448402,-1983.21942943,0.00025,2]
[329659214,1718549448419,-326.42008962,0.00025054,2]
[329659215,1718549448432,-225.48556248,0.00025055,2]
[329659216,1718549448445,-14485.73159542,0.00025056,2]
[329659217,1718549448479,-7432.2410971,0.00025057,2]
[329659218,1718549448491,-151.0,0.0002508,7]
[329659219,1718549448505,-151.0,0.0002508,7]
[329659220,1718549448532,-151.0,0.0002508,7]
[329659221,1718549448553,-154.764042,0.0002508,7]
[329659222,1718549448578,-151.0,0.0002508,7]
[329659223,1718549448594,-151.0,0.0002508,7]
[329659224,1718549448605,-151.0,0.0002508,7]
[329659225,1718549448616,-151.0,0.0002508,7]
[329659226,1718549448627,-151.0,0.0002508,7]
[329659227,1718549448644,-151.0,0.0002508,7]
[329659228,1718549448664,-151.0,0.0002508,7]
[329659229,1718549448717,-151.0,0.0002508,7]
[329659230,1718549448765,-152.649986,0.0002508,7]
[329659231,1718549448783,-151.0,0.0002508,7]
[329659232,1718549448812,-151.0,0.0002508,7]
[329659233,1718549448824,-188.16,0.00025084,2]
[329659234,1718549448847,-1500.0,0.00025098,2]
[329659235,1718549448862,-1014.08,0.000251,2]
[329659236,1718549448884,-392.9714793,0.00025265,2]
[329659237,1718549448911,-508.65,0.00025273,2]
[329659238,1718549448936,-150.0,0.00025669,2]
[329659239,1718549448952,-150.0,0.00025685,2]
[329659240,1718549448980,-4820.47,0.00025792,2]
[329659241,1718549448993,-151.0,0.00025792,7]
[329659242,1718549449013,-151.0,0.00025792,7]
[329659243,1718549449036,-151.0,0.00025792,7]
[329659244,1718549449050,-151.0,0.00025792,7]
[329659245,1718549449064,-151.0,0.00025792,7]
[329659246,1718549449075,-151.0,0.00025792,7]
[329659247,1718549449093,-151.0,0.00025792,7]
[329659248,1718549449117,-151.0,0.00025792,7]
[329659249,1718549449137,-151.0,0.00025792,7]
[329659250,1718549449171,-183.162554,0.00025792,7]
[329659251,1718549449201,-183.162554,0.00025792,7]
[329659252,1718549449260,-157.339037,0.00025792,7]
[329659253,1718549449284,-151.0,0.00025792,7]
[329659254,1718549449299,-151.201505,0.00025792,7]
[329659255,1718549449323,-151.0,0.00025792,7]
[329659256,1718549449336,-151.0,0.00025792,7]
[329659257,1718549449348,-151.0,0.00025792,7]
[329659258,1718549449360,-151.0,0.00025792,7]
[329659259,1718549449372,-151.0,0.00025792,7]
[329659260,1718549449391,-151.0,0.00025792,7]
[329659261,1718549449403,-157.171694,0.00025792,7]
[329659262,1718549449417,-151.0,0.00025792,7]
[329659263,1718549449431,-151.0,0.00025792,7]
[329659264,1718549449443,-151.0,0.00025792,7]
[329659265,1718549449458,-151.0,0.00025792,7]
[329659266,1718549449470,-151.0,0.00025792,7]
[329659267,1718549449484,-151.0,0.00025792,7]
[329659268,1718549449495,-151.0,0.00025792,7]
[329659269,1718549449507,-151.0,0.00025792,7]
[329659270,1718549449519,-151.0,0.00025792,7]
[329659271,1718549449536,-151.0,0.00025792,7]
[329659272,1718549449553,-184.501384,0.00025792,7]
[329659273,1718549449565,-151.0,0.00025792,7]
[329659274,1718549449580,-151.0,0.00025792,7]
[329659275,1718549449595,-151.0,0.00025792,7]
[329659276,1718549449636,-151.0,0.00025792,7]
[329659277,1718549449696,-151.0,0.00025792,7]
[329659278,1718549449732,-151.0,0.00025792,7]
[329659279,1718549449745,-151.0,0.00025792,7]
[329659280,1718549449804,-151.0,0.00025792,7]
[329659281,1718549449816,-184.501384,0.00025792,7]
[329659282,1718549449842,-165.508752,0.00025792,7]
[329659283,1718549449855,-165.508752,0.00025792,7]
[329659284,1718549449885,-151.0,0.00025792,7]
[329659285,1718549449896,-151.0,0.00025792,7]
[329659286,1718549449910,-151.0,0.00025792,7]
[329659287,1718549449922,-151.0,0.00025792,7]
[329659288,1718549449937,-159.7647,0.00025792,7]
[329659289,1718549449950,-151.0,0.00025792,7]
[329659290,1718549449981,-159.7647,0.00025792,7]
[329659291,1718549449995,-151.0,0.00025792,7]
[329659292,1718549450007,-151.0,0.00025792,7]
[329659293,1718549450018,-200.0,0.00025792,2]
[329659294,1718549450043,-200.0,0.00025792,2]
[329659295,1718549450062,-200.0,0.00025792,2]
[329659296,1718549450085,-200.0,0.00025792,2]
[329659297,1718549450100,-200.0,0.00025792,2]
[329659298,1718549450117,-200.0,0.00025792,2]
[329659299,1718549450146,-179.0,0.00025792,2]
[329659300,1718549450176,-1000.0,0.00025792,2]
[329659301,1718549450188,-1000.0,0.00025792,2]
[329659302,1718549450236,-1000.0,0.00025792,2]
[329659303,1718549450249,-1000.0,0.00025792,2]
[329659304,1718549450268,-1000.0,0.00025792,2]
[329659305,1718549450287,-1000.0,0.00025792,2]
[329659306,1718549450320,-1000.0,0.00025792,2]
[329659308,1718549450352,-1000.0,0.00025792,2]
[329659310,1718549450379,-1000.0,0.00025792,2]
[329659311,1718549450432,-1000.0,0.00025792,2]
[329659314,1718549450456,-1000.0,0.00025792,2]
[329659316,1718549450474,-1000.0,0.00025792,2]
[329659318,1718549450489,-1000.0,0.00025792,2]
[329659320,1718549450505,-1000.0,0.00025792,2]
[329659322,1718549450522,-1000.0,0.00025792,2]
[329659324,1718549450537,-1000.0,0.00025792,2]
[329659326,1718549450552,-1000.0,0.00025792,2]
[329659328,1718549450567,-1000.0,0.00025792,2]
[329659330,1718549450588,-1000.0,0.00025792,2]
[329659332,1718549450605,-1000.0,0.00025792,2]
[329659334,1718549450617,-511.0,0.00025792,2]
[329659335,1718549450639,-6620.58192571,0.00025888,2]
[329659337,1718549450676,-150.0,0.00025889,2]
[329659339,1718549450703,-1014.08,0.0002591,2]
[329659341,1718549450714,-13126.93729336,0.00026,5]
[329659343,1718549450728,-151.0,0.00026,7]
[329659344,1718549450763,-187.81581,0.00026,7]
[329659346,1718549450786,-151.0,0.00026,7]
[329659348,1718549450808,-156.045762,0.00026,7]
[329659350,1718549450819,-151.0,0.00026,7]
[329659352,1718549450832,-1369.385998,0.00026,7]
[329659354,1718549450844,-150.0,0.00026164,2]
[329659356,1718549450858,-370.11444388,0.0002627,2]
[329659358,1718549450873,-1389.95255,0.0002627,2]
[329659360,1718549450893,-312.71181864,0.00026372,7]
[329659361,1718549450905,-154.68170655,0.00026432,2]
[329659363,1718549450918,-4857.24,0.00026528,2]
[329659365,1718549450931,-169.36899405,0.00026532,2]
[329659367,1718549450969,-1205.49676765,0.00026532,2]
[329659369,1718549450986,-7784.73756116,0.00026532,2]
[329659371,1718549450998,-155.0,0.00026532,2]
[329659373,1718549451010,-5902.66961033,0.00026532,2]
[329659375,1718549451043,-411.02483161,0.00026532,2]
[329659377,1718549451059,-305.0,0.00026532,2]
[329659380,1718549451089,-290.10514488,0.00026532,2]
[329659381,1718549451117,-155.0,0.00026532,2]
[329659383,1718549451129,-348.2371921,0.00026532,2]
[329659385,1718549451142,-1036.44043588,0.00026532,2]
[329659387,1718549451155,-300.0,0.00026532,2]
[329659389,1718549451172,-336767.73551356,0.00026532,2]
[329659392,1718549451208,-151.0,0.00026532,7]
[329659393,1718549451222,-151.0,0.00026532,7]
[329659395,1718549451265,-151.0,0.00026532,7]
[329659397,1718549451294,-151.0,0.00026532,7]
[329659399,1718549451316,-151.0,0.00026532,7]
[329659401,1718549451327,-151.0,0.00026532,7]
[329659403,1718549451342,-151.0,0.00026532,7]
[329659405,1718549451373,-151.0,0.00026532,7]
[329659407,1718549451387,-151.0,0.00026532,7]
[329659409,1718549451403,-151.0,0.00026532,7]
[329659411,1718549451433,-151.0,0.00026532,7]
[329659413,1718549451449,-151.0,0.00026532,7]
[329659415,1718549451464,-151.0,0.00026532,7]
[329659417,1718549451487,-151.0,0.00026532,7]
[329659418,1718549451498,-151.0,0.00026532,7]
[329659420,1718549451514,-151.0,0.00026532,7]
[329659422,1718549451528,-151.0,0.00026532,7]
[329659424,1718549451546,-151.0,0.00026532,7]
[329659426,1718549451573,-151.0,0.00026532,7]
[329659427,1718549451584,-151.0,0.00026532,7]
[329659429,1718549451594,-151.0,0.00026532,7]
[329659432,1718549451616,-151.0,0.00026532,7]
[329659434,1718549451626,-151.0,0.00026532,7]
[329659436,1718549451638,-151.0,0.00026532,7]
[329659438,1718549451653,-151.0,0.00026532,7]
[329659439,1718549451690,-151.0,0.00026532,7]
[329659441,1718549451704,-156.978316,0.00026532,7]
[329659443,1718549451727,-151.0,0.00026532,7]
[329659445,1718549451739,-151.0,0.00026532,7]
[329659447,1718549451749,-151.0,0.00026532,7]
[329659449,1718549451762,-151.0,0.00026532,7]
[329659452,1718549451781,-183.162554,0.00026532,7]
[329659454,1718549451803,-151.0,0.00026532,7]
[329659455,1718549451813,-183.162554,0.00026532,7]
[329659457,1718549451837,-153.456685,0.00026532,7]
[329659459,1718549451858,-151.0,0.00026532,7]
[329659461,1718549451877,-151.0,0.00026532,7]
[329659463,1718549451891,-155.176301,0.00026532,7]
[329659465,1718549451912,-151.0,0.00026532,7]
[329659468,1718549451926,-152.820224,0.00026532,7]
[329659470,1718549451942,-151.0,0.00026532,7]
[329659472,1718549451964,-151.0,0.00026532,7]
[329659473,1718549451981,-151.0,0.00026532,7]
[329659475,1718549452018,-151.0,0.00026532,7]
[329659477,1718549452031,-151.0,0.00026532,7]
[329659478,1718549452050,-151.0,0.00026532,7]
[329659480,1718549452062,-151.0,0.00026532,7]
[329659482,1718549452092,-151.0,0.00026532,7]
[329659484,1718549452113,-151.0,0.00026532,7]
[329659485,1718549452132,-151.0,0.00026532,7]
[329659487,1718549452164,-151.0,0.00026532,7]
[329659488,1718549452179,-151.0,0.00026532,7]
[329659490,1718549452205,-151.0,0.00026532,7]
[329659491,1718549452216,-285.802037,0.00026532,7]
[329659492,1718549452268,-152.027536,0.00026532,7]
[329659493,1718549452280,-151.0,0.00026532,7]
[329659494,1718549452292,-153.084266,0.00026532,7]
[329659495,1718549452324,-151.0,0.00026532,7]
[329659497,1718549452348,-151.0,0.00026532,7]
[329659499,1718549452360,-151.0,0.00026532,7]
[329659501,1718549452378,-151.0,0.00026532,7]
[329659502,1718549452390,-151.0,0.00026532,7]
[329659503,1718549452406,-151.730614,0.00026532,7]
[329659505,1718549452421,-151.0,0.00026532,7]
[329659508,1718549452446,-151.0,0.00026532,7]
[329659510,1718549452460,-151.0,0.00026532,7]
[329659512,1718549452484,-151.0,0.00026532,7]
[329659514,1718549452494,-184.501384,0.00026532,7]
[329659516,1718549452507,-151.0,0.00026532,7]
[329659517,1718549452522,-151.0,0.00026532,7]
[329659519,1718549452536,-151.0,0.00026532,7]
[329659521,1718549452557,-151.0,0.00026532,7]
[329659523,1718549452573,-151.0,0.00026532,7]
[329659524,1718549452603,-151.0,0.00026532,7]
[329659526,1718549452613,-155.19419,0.00026532,7]
[329659528,1718549452623,-151.0,0.00026532,7]
[329659530,1718549452633,-184.501384,0.00026532,7]
[329659533,1718549452660,-165.508752,0.00026532,7]
[329659535,1718549452670,-165.508752,0.00026532,7]
[329659537,1718549452685,-151.0,0.00026532,7]
[329659539,1718549452715,-154.957964,0.00026532,7]
[329659540,1718549452740,-151.0,0.00026532,7]
[329659542,1718549452756,-151.0,0.00026532,7]
[329659545,1718549452771,-159.7647,0.00026532,7]
[329659546,1718549452783,-151.0,0.00026532,7]
[329659548,1718549452796,-159.7647,0.00026532,7]
[329659550,1718549452807,-151.0,0.00026532,7]
[329659553,1718549452836,-151.0,0.00026532,7]
[329659555,1718549452850,-151.0,0.00026532,7]
[329659556,1718549452869,-151.0,0.00026532,7]
[329659558,1718549452880,-151.0,0.00026532,7]
[329659561,1718549452895,-1369.385998,0.00026532,7]
[329659564,1718549452949,-151.0,0.00026575,7]
[329659566,1718549452963,-150.0,0.00026669,2]
[329659568,1718549452980,-1014.08,0.0002672,2]
[329659570,1718549452993,-150.0,0.00026774,2]
[329659572,1718549453007,-1500.0,0.00026818,2]
[329659574,1718549453053,-207.85531082,0.00026829,2]
[329659576,1718549453065,-151.0,0.00026911,5]
[329659578,1718549453079,-174.76,0.00026923,2]
[329659580,1718549453091,-150.0,0.00026927,2]
[329659582,1718549453102,-273.33,0.00026959,2]
[329659583,1718549453115,-150.0,0.00026959,2]
[329659585,1718549453127,-353.67,0.00026959,2]
[329659587,1718549453147,-2318.5226623,0.00026972,15]
[329659589,1718549453158,-936.074029,0.00027,5]
[329659591,1718549453168,-17812.44666351,0.00027,2]
[329659593,1718549453180,-150.0,0.00027013,2]
[329659595,1718549453199,-150.0,0.00027036,2]
[329659597,1718549453219,-150.0,0.00027068,2]
[329659599,1718549453246,-150.0,0.00027155,2]
[329659601,1718549453265,-151.0,0.00027199,7]
[329659605,1718549453300,-151.0,0.00027199,7]
[329659607,1718549453314,-151.0,0.00027199,7]
[329659609,1718549453344,-151.0,0.00027199,7]
[329659610,1718549453373,-151.0,0.00027199,7]
[329659613,1718549453412,-151.0,0.00027199,7]
[329659615,1718549453439,-151.0,0.00027199,7]
[329659617,1718549453451,-2014.98329277,0.000272,2]
[329659619,1718549453471,-151.0,0.000272,7]
[329659621,1718549453483,-151.0,0.000272,7]
[329659623,1718549453502,-152.565808,0.000272,7]
[329659624,1718549453515,-151.0,0.000272,7]
[329659626,1718549453527,-300.0,0.0002721,2]
[329659628,1718549453541,-1103.97483493,0.00027213,2]
[329659630,1718549453558,-1073.20226176,0.00027213,2]
[329659632,1718549453576,-150.0,0.00027243,2]
[329659635,1718549453592,-150.0,0.00027248,2]
[329659637,1718549453628,-150.0,0.00027265,2]
[329659639,1718549453648,-219.83,0.00027288,2]
[329659641,1718549453673,-150.0,0.00027378,2]
[329659643,1718549453712,-150.0,0.00027381,2]
[329659645,1718549453727,-150.0,0.00027392,2]
[329659647,1718549453740,-500.0,0.00027397,2]
[329659649,1718549453756,-215.33429387,0.00027397,2]
[329659652,1718549453780,-151.0,0.00027397,7]
[329659654,1718549453821,-247.684584,0.00027397,7]
[329659656,1718549453834,-152.320575,0.00027397,7]
[329659657,1718549453845,-151.0,0.00027397,7]
[329659659,1718549453860,-151.0,0.00027397,7]
[329659661,1718549453881,-506.87301199,0.00027397,2]
[329659663,1718549453909,-151.754477,0.00027397,7]
[329659666,1718549453927,-500.0,0.00027397,8]
[329659668,1718549453944,-500.0,0.00027397,8]
[329659671,1718549453978,-402.36343823,0.00027397,8]
[329659673,1718549453993,-500.0,0.00027397,8]
[329659675,1718549454028,-625.13745182,0.00027397,8]
[329659677,1718549454040,-500.0,0.00027397,8]
[329659679,1718549454080,-473.11026419,0.00027397,8]
[329659681,1718549454099,-500.0,0.00027397,8]
[329659683,1718549454128,-500.0,0.00027397,8]
[329659685,1718549454157,-500.0,0.00027397,8]
[329659688,1718549454174,-500.0,0.00027397,8]
[329659689,1718549454198,-500.0,0.00027397,8]
[329659691,1718549454222,-500.0,0.00027397,8]
[329659701,1718549454405,-500.0,0.00027397,8]
[329659703,1718549454439,-235.09,0.00027397,8]
[329659704,1718549454458,-500.0,0.00027397,8]
[329659706,1718549454484,-500.0,0.00027397,8]
[329659708,1718549454500,-500.0,0.00027397,8]
[329659711,1718549454536,-500.0,0.00027397,8]
[329659713,1718549454566,-500.0,0.00027397,8]
[329659715,1718549454578,-500.0,0.00027397,8]
[329659717,1718549454606,-500.0,0.00027397,8]
[329659719,1718549454634,-500.0,0.00027397,8]
[329659722,1718549454681,-472.11144706,0.00027397,8]
[329659724,1718549454697,-500.0,0.00027397,8]
[329659726,1718549454718,-500.0,0.00027397,8]
[329659728,1718549454760,-500.0,0.00027397,8]
[329659730,1718549454777,-500.0,0.00027397,8]
[329659732,1718549454793,-500.0,0.00027397,8]
[329659734,1718549454825,-500.0,0.00027397,8]
[329659735,1718549454842,-500.0,0.00027397,8]
[329659738,1718549454882,-500.0,0.00027397,8]
[329659740,1718549454901,-500.0,0.00027397,8]
[329659742,1718549454958,-218.00973303,0.00027397,8]
[329659745,1718549455039,-42067.89323293,0.00027397,2]
[329659747,1718549455054,-516.20832511,0.00027397,2]
[329659749,1718549455089,-500.0,0.00027397,8]
[329659750,1718549455120,-572.13839056,0.00027397,8]
[329659752,1718549455153,-585.24297544,0.00027397,8]
[329659754,1718549455180,-172.62409989,0.00027397,8]
[329659757,1718549455206,-200.0,0.00027397,7]
[329659759,1718549455268,-199.64,0.00027397,2]
[329659760,1718549455296,-150.0,0.00027397,2]
[329659763,1718549455310,-151.0,0.00027397,7]
[329659764,1718549455325,-151.0,0.00027397,7]
[329659767,1718549455348,-2000.0,0.00027397,30]
[329659768,1718549455361,-244.390401,0.00027397,7]
[329659770,1718549455383,-244.390401,0.00027397,7]
[329659772,1718549455408,-244.390401,0.00027397,7]
[329659774,1718549455430,-244.390401,0.00027397,7]
[329659776,1718549455460,-256.37,0.00027397,10]
[329659778,1718549455472,-448.00940266,0.000274,2]
[329659780,1718549455485,-200.0,0.000274,2]
[329659782,1718549455499,-1000.0,0.000274,2]
[329659783,1718549455512,-150.0,0.00027415,2]
[329659785,1718549455525,-1882.3709,0.0002747,2]
[329659788,1718549455540,-150.0,0.00027486,2]
[329659789,1718549455553,-150.0,0.00027491,2]
[329659792,1718549455571,-1825.33142529,0.000275,2]
[329659794,1718549455594,-150.0,0.00027501,2]
[329659795,1718549455616,-1500.0,0.00027509,2]
[329659796,1718549455628,-150.0,0.00027528,2]
[329659798,1718549455639,-1014.08,0.0002753,2]
[329659800,1718549455654,-150.0,0.0002753,2]
[329659801,1718549455672,-508.65,0.00027537,2]
[329659803,1718549455684,-500.0,0.00027546,2]
[329659806,1718549455712,-500.0,0.00027547,2]
[329659808,1718549455732,-1000.0,0.00027571,2]
[329659809,1718549455748,-1500.0,0.00027608,2]
[329659811,1718549455764,-150.0,0.00027612,2]
[329659813,1718549455779,-155.0,0.00027621,2]
[329659814,1718549455807,-150.0,0.00027632,2]
[329659816,1718549455823,-1500.0,0.00027647,2]
[329659819,1718549455862,-150.0,0.00027651,2]
[329659820,1718549455899,-150.0,0.00027655,2]
[329659822,1718549455917,-150.0,0.00027657,2]
[329659824,1718549455944,-5553.35350971,0.0002766,2]
[329659826,1718549455956,-5553.35350967,0.0002766,2]
[329659828,1718549456004,-5553.35350967,0.0002766,2]
[329659829,1718549456020,-5553.35350967,0.00027661,2]
[329659831,1718549456033,-5553.35350967,0.00027661,2]
[329659833,1718549456047,-5553.35350967,0.00027661,2]
[329659835,1718549456067,-5553.35350967,0.00027661,2]
[329659836,1718549456084,-5553.35350967,0.00027661,2]
[329659838,1718549456099,-5553.35350967,0.00027661,2]
[329659840,1718549456117,-5553.35350967,0.00027662,2]
[329659842,1718549456148,-5553.35350967,0.00027662,2]
[329659844,1718549456172,-10000.0,0.00027662,2]
[329659846,1718549456186,-5553.35350967,0.00027662,2]
[329659847,1718549456208,-170.45075407,0.00027662,2]
[329659850,1718549456224,-6620.58192571,0.00027662,2]
[329659852,1718549456236,-377.16541347,0.00027662,2]
[329659854,1718549456249,-150.0,0.00027669,2]
[329659856,1718549456282,-500.0,0.00027669,2]
[329659857,1718549456306,-500.0,0.00027669,2]
[329659859,1718549456325,-351.02169211,0.00027669,2]
[329659860,1718549456337,-539.93387588,0.00027669,2]
[329659863,1718549456352,-370.27272899,0.00027669,8]
[329659864,1718549456372,-151.0,0.00027671,7]
[329659866,1718549456393,-151.0,0.00027671,7]
[329659868,1718549456445,-150.0,0.00027672,2]
[329659869,1718549456491,-150.0,0.0002768,2]
[329659872,1718549456512,-150.0,0.00027688,2]
[329659874,1718549456525,-916.0,0.000277,2]
[329659875,1718549456536,-2000.0,0.000277,2]
[329659877,1718549456553,-2000.0,0.000277,2]
[329659879,1718549456566,-2000.0,0.000277,2]
[329659881,1718549456577,-2500.0,0.000277,2]
[329659883,1718549456589,-2000.0,0.000277,2]
[329659885,1718549456613,-2000.0,0.000277,2]
[329659887,1718549456625,-2000.0,0.000277,2]
[329659888,1718549456637,-2000.0,0.000277,2]
[329659890,1718549456666,-150.0,0.000277,5]
[329659892,1718549456679,-150.0,0.000277,5]
[329659895,1718549456700,-155.0,0.000277,2]
[329659897,1718549456713,-150.0,0.00027724,2]
[329659899,1718549456727,-150.0,0.00027728,2]
[329659901,1718549456742,-150.0,0.00027733,2]
[329659904,1718549456758,-150.0,0.00027737,2]
[329659907,1718549456833,-150.0,0.0002775,2]
[329659909,1718549456847,-417.29399913,0.00027752,2]
[329659911,1718549456860,-150.0,0.00027753,2]
[329659913,1718549456876,-264.74562378,0.00027757,2]
[329659915,1718549456889,-156.14373959,0.0002776,2]
[329659917,1718549456907,-155.22699187,0.0002776,2]
[329659919,1718549456945,-545.84909757,0.0002776,2]
[329659920,1718549456960,-676.08366128,0.0002776,2]
[329659922,1718549456976,-205.60285074,0.0002776,2]
[329659924,1718549456996,-250.87934533,0.0002776,2]
[329659926,1718549457014,-12580.88154519,0.0002776,2]
[329659929,1718549457030,-156.17167334,0.0002776,2]
[329659930,1718549457051,-459.71483307,0.0002776,2]
[329659933,1718549457070,-248.1650208,0.0002776,2]
[329659935,1718549457082,-601.11806979,0.0002776,2]
[329659937,1718549457114,-208.21284041,0.0002776,2]
[329659938,1718549457148,-306.26264985,0.0002776,2]
[329659942,1718549457192,-709.57669779,0.0002776,2]
[329659943,1718549457207,-155.0,0.0002776,2]
[329659945,1718549457224,-155.0,0.0002776,2]
[329659946,1718549457240,-1252.78326197,0.0002776,2]
[329659948,1718549457260,-321.75766818,0.0002776,2]
[329659950,1718549457274,-1974.36334918,0.0002776,2]